lending/lending_fUSD_20250425
["ID","MTS","AMOUNT","RATE_DAILY","PERIOD"]
[359001101,1745615497072,-151.0,0.00028767,7]
[359001102,1745615497082,-700.55,0.00028767,2]
[359001103,1745615497092,-500.0,0.00028767,2]
[359001104,1745615497102,-151.0,0.00028767,7]
[359001105,1745615497111,-1117.09,0.00028767,2]
[359001106,1745615497121,-500.0,0.00028767,2]
[359001107,1745615497131,-1328.1,0.00028767,2]
[359001108,1745615497141,-500.0,0.00028767,2]
[359001109,1745615497151,-524.02,0.00028767,2]
[359001110,1745615497161,-500.0,0.00028767,2]
[359001111,1745615497171,-500.0,0.00028767,2]
[359001112,1745615497181,-500.0,0.00028767,2]
[359001113,1745615497190,-1667.26,0.00028767,2]
[359001114,1745615497200,-903.49,0.00028767,2]
[359001115,1745615497209,-871.82,0.00028767,2]
[359001116,1745615497219,-500.0,0.00028767,2]
[359001117,1745615497228,-500.0,0.00028767,2]
[359001118,1745615497237,-500.0,0.00028767,2]
[359001119,1745615497247,-691.13,0.00028767,2]
[359001120,1745615497257,-500.0,0.00028767,2]
[359001121,1745615497267,-505.53,0.00028767,2]
[359001122,1745615497276,-500.0,0.00028767,2]
[359001123,1745615497286,-500.0,0.00028767,2]
[359001124,1745615497296,-500.0,0.00028767,2]
[359001125,1745615497305,-565.01,0.00028767,2]
[359001126,1745615497314,-768.41,0.00028767,2]
[359001127,1745615497324,-500.0,0.00028767,2]
[359001128,1745615497333,-500.0,0.00028767,2]
[359001129,1745615497343,-500.0,0.00028767,2]
[359001130,1745615497352,-500.0,0.00028767,2]
[359001131,1745615497362,-500.0,0.00028767,2]
[359001132,1745615497371,-1675.29,0.00028767,2]
[359001133,1745615497381,-500.0,0.00028767,2]
[359001134,1745615497390,-500.0,0.00028767,2]
[359001135,1745615497400,-1493.7,0.00028767,2]
[359001136,1745615497409,-809.22,0.00028767,2]
[359001137,1745615497419,-500.0,0.00028767,2]
[359001138,1745615497428,-448.14282113,0.00028767,2]
[359001139,1745615497438,-500.0,0.00028767,2]
[359001140,1745615497447,-500.0,0.00028767,2]
[359001141,1745615497457,-500.0,0.00028767,2]
[359001142,1745615497466,-500.0,0.00028767,2]
[359001143,1745615497475,-500.0,0.00028767,2]
[359001144,1745615497484,-500.0,0.00028767,2]
[359001145,1745615497494,-500.0,0.00028767,2]
[359001146,1745615497504,-500.0,0.00028767,2]
[359001147,1745615497513,-500.0,0.00028767,2]
[359001148,1745615497523,-500.0,0.00028767,2]
[359001149,1745615497532,-617.3,0.00028767,2]
[359001150,1745615497543,-500.0,0.00028767,2]
[359001151,1745615497552,-500.0,0.00028767,2]
[359001152,1745615497562,-500.0,0.00028767,2]
[359001153,1745615497571,-500.0,0.00028767,2]
[359001154,1745615497580,-707.29,0.00028767,2]
[359001155,1745615497590,-300.0,0.00028767,2]
[359001156,1745615497600,-500.0,0.00028767,2]
[359001157,1745615497610,-500.0,0.00028767,2]
[359001158,1745615497620,-500.0,0.00028767,2]
[359001159,1745615497630,-500.0,0.00028767,2]
[359001160,1745615497639,-500.0,0.00028767,2]
[359001161,1745615497649,-828.2,0.00028767,2]
[359001162,1745615497658,-151.0,0.00028767,7]
[359001163,1745615497668,-500.0,0.00028767,2]
[359001164,1745615497678,-1007.12,0.00028767,2]
[359001165,1745615497688,-504.64,0.00028767,2]
[359001166,1745615497698,-870.41,0.00028767,2]
[359001167,1745615497708,-500.0,0.00028767,2]
[359001168,1745615497717,-500.0,0.00028767,2]
[359001169,1745615497727,-151.0,0.00028767,7]
[359001170,1745615497737,-500.0,0.00028767,2]
[359001171,1745615497747,-500.0,0.00028767,2]
[359001172,1745615497758,-536.294932,0.00028767,7]
[359001173,1745615497770,-634.25,0.00028767,2]
[359001174,1745615497781,-151.0,0.00028767,7]
[359001175,1745615497792,-898.18,0.00028767,2]
[359001176,1745615497802,-500.0,0.00028767,2]
[359001177,1745615497812,-500.0,0.00028767,2]
[359001178,1745615497821,-500.0,0.00028767,2]
[359001179,1745615497830,-536.294932,0.00028767,7]
[359001180,1745615497842,-500.0,0.00028767,2]
[359001181,1745615497851,-650.13,0.00028767,2]
[359001182,1745615497861,-500.0,0.00028767,2]
[359001183,1745615497871,-500.0,0.00028767,2]
[359001184,1745615497881,-961.01,0.00028767,2]
[359001185,1745615497891,-551.4988502,0.00028767,2]
[359001186,1745615497901,-500.0,0.00028767,2]
[359001187,1745615497911,-500.0,0.00028767,2]
[359001188,1745615497920,-151.0,0.00028767,7]
[359001189,1745615497930,-892.66,0.00028767,2]
[359001190,1745615497940,-500.0,0.00028767,2]
[359001191,1745615497949,-500.0,0.00028767,2]
[359001192,1745615497960,-500.0,0.00028767,2]
[359001193,1745615497969,-500.0,0.00028767,2]
[359001194,1745615497980,-743.74,0.00028767,2]
[359001195,1745615497989,-500.0,0.00028767,2]
[359001196,1745615497999,-500.0,0.00028767,2]
[359001197,1745615498009,-500.0,0.00028767,2]
[359001198,1745615498018,-838.2,0.00028767,2]
[359001199,1745615498027,-500.0,0.00028767,2]
[359001200,1745615498037,-2157.83,0.00028767,2]
[359001201,1745615498046,-500.0,0.00028767,2]
[359001202,1745615498055,-500.0,0.00028767,2]
[359001203,1745615498064,-500.0,0.00028767,2]
[359001204,1745615498073,-952.46,0.00028767,2]
[359001205,1745615498083,-993.69,0.00028767,2]
[359001206,1745615498092,-500.0,0.00028767,2]
[359001207,1745615498101,-500.0,0.00028767,2]
[359001208,1745615498111,-500.0,0.00028767,2]
[359001209,1745615498120,-856.86,0.00028767,2]
[359001210,1745615498129,-500.0,0.00028767,2]
[359001211,1745615498138,-500.0,0.00028767,2]
[359001212,1745615498148,-500.0,0.00028767,2]
[359001213,1745615498158,-500.0,0.00028767,2]
[359001214,1745615498168,-500.0,0.00028767,2]
[359001215,1745615498178,-913.6,0.00028767,2]
[359001216,1745615498187,-895.68,0.00028767,2]
[359001217,1745615498197,-550.22,0.00028767,2]
[359001218,1745615498207,-500.0,0.00028767,2]
[359001219,1745615498216,-151.0,0.00028767,7]
[359001220,1745615498226,-500.0,0.00028767,2]
[359001221,1745615498236,-623.86,0.00028767,2]
[359001222,1745615498245,-1062.92,0.00028767,2]
[359001223,1745615498256,-500.0,0.00028767,2]
[359001224,1745615498266,-500.0,0.00028767,2]
[359001225,1745615498275,-500.0,0.00028767,2]
[359001226,1745615498287,-500.0,0.00028767,2]
[359001227,1745615498297,-500.0,0.00028767,2]
[359001228,1745615498308,-500.0,0.00028767,2]
[359001229,1745615498318,-541.72709205,0.00028767,2]
[359001230,1745615498328,-831.29,0.00028767,2]
[359001231,1745615498338,-500.0,0.00028767,2]
[359001232,1745615498348,-500.0,0.00028767,2]
[359001233,1745615498357,-548.87682376,0.00028767,2]
[359001234,1745615498367,-500.0,0.00028767,2]
[359001235,1745615498377,-670.38,0.00028767,2]
[359001236,1745615498386,-500.0,0.00028767,2]
[359001237,1745615498396,-500.0,0.00028767,2]
[359001238,1745615498406,-500.0,0.00028767,2]
[359001239,1745615498416,-500.0,0.00028767,2]
[359001240,1745615498426,-500.0,0.00028767,2]
[359001241,1745615498435,-2507.6,0.00028767,2]
[359001242,1745615498446,-151.0,0.00028767,7]
[359001243,1745615498455,-527.09,0.00028767,2]
[359001244,1745615498465,-589.15,0.00028767,2]
[359001245,1745615498474,-605.57886452,0.00028767,2]
[359001246,1745615498484,-500.0,0.00028767,2]
[359001247,1745615498494,-151.0,0.00028767,7]
[359001248,1745615498504,-500.0,0.00028767,2]
[359001249,1745615498513,-1298.62,0.00028767,2]
[359001250,1745615498522,-890.2,0.00028767,2]
[359001251,1745615498532,-585.14,0.00028767,2]
[359001252,1745615498543,-831.47,0.00028767,2]
[359001253,1745615498553,-500.0,0.00028767,2]
[359001254,1745615498562,-500.0,0.00028767,2]
[359001255,1745615498572,-500.0,0.00028767,2]
[359001256,1745615498581,-776.96,0.00028767,2]
[359001257,1745615498591,-845.97,0.00028767,2]
[359001258,1745615498603,-703.57,0.00028767,2]
[359001259,1745615498613,-500.0,0.00028767,2]
[359001260,1745615498623,-811.1,0.00028767,2]
[359001261,1745615498633,-500.0,0.00028767,2]
[359001262,1745615498644,-500.0,0.00028767,2]
[359001263,1745615498655,-151.0,0.00028767,7]
[359001264,1745615498666,-500.0,0.00028767,2]
[359001265,1745615498676,-500.0,0.00028767,2]
[359001266,1745615498687,-500.0,0.00028767,2]
[359001267,1745615498698,-203.291379,0.00028767,7]
[359001268,1745615498708,-572.32,0.00028767,2]
[359001269,1745615498719,-500.0,0.00028767,2]
[359001270,1745615498729,-500.0,0.00028767,2]
[359001271,1745615498739,-575.85,0.00028767,2]
[359001272,1745615498750,-500.0,0.00028767,2]
[359001273,1745615498761,-500.0,0.00028767,2]
[359001274,1745615498772,-500.0,0.00028767,2]
[359001275,1745615498782,-915.77,0.00028767,2]
[359001276,1745615498795,-500.0,0.00028767,2]
[359001277,1745615498806,-891.36,0.00028767,2]
[359001278,1745615498816,-500.0,0.00028767,2]
[359001279,1745615498826,-500.0,0.00028767,2]
[359001280,1745615498835,-500.0,0.00028767,2]
[359001281,1745615498845,-323.09615243,0.00028767,2]
[359001282,1745615498855,-500.0,0.00028767,2]
[359001283,1745615498866,-500.0,0.00028767,2]
[359001284,1745615498876,-698.19,0.00028767,2]
[359001285,1745615498885,-905.34,0.00028767,2]
[359001286,1745615498896,-932.86,0.00028767,2]
[359001287,1745615498907,-151.0,0.00028767,7]
[359001288,1745615498918,-615.79764007,0.00028767,2]
[359001289,1745615498929,-500.0,0.00028767,2]
[359001290,1745615498939,-500.0,0.00028767,2]
[359001291,1745615498949,-500.0,0.00028767,2]
[359001292,1745615498960,-1270.11,0.00028767,2]
[359001293,1745615498970,-500.0,0.00028767,2]
[359001294,1745615498980,-886.28,0.00028767,2]
[359001295,1745615498990,-785.06,0.00028767,2]
[359001296,1745615499000,-500.0,0.00028767,2]
[359001297,1745615499010,-500.0,0.00028767,2]
[359001298,1745615499021,-500.0,0.00028767,2]
[359001299,1745615499031,-980.12,0.00028767,2]
[359001300,1745615499043,-806.68,0.00028767,2]
[359001301,1745615499053,-500.0,0.00028767,2]
[359001302,1745615499063,-780.33,0.00028767,2]
[359001303,1745615499073,-893.71,0.00028767,2]
[359001304,1745615499083,-151.0,0.00028767,7]
[359001305,1745615499092,-507.22,0.00028767,2]
[359001306,1745615499103,-500.0,0.00028767,2]
[359001307,1745615499113,-523.05,0.00028767,2]
[359001308,1745615499123,-500.0,0.00028767,2]
[359001309,1745615499132,-500.0,0.00028767,2]
[359001310,1745615499143,-500.0,0.00028767,2]
[359001311,1745615499153,-500.0,0.00028767,2]
[359001312,1745615499163,-943.92,0.00028767,2]
[359001313,1745615499173,-500.0,0.00028767,2]
[359001314,1745615499183,-500.0,0.00028767,2]
[359001315,1745615499193,-500.0,0.00028767,2]
[359001316,1745615499203,-1751.04,0.00028767,2]
[359001317,1745615499214,-774.49,0.00028767,2]
[359001318,1745615499225,-500.0,0.00028767,2]
[359001319,1745615499235,-500.0,0.00028767,2]
[359001320,1745615499245,-500.0,0.00028767,2]
[359001321,1745615499256,-500.0,0.00028767,2]
[359001322,1745615499266,-204.93604627,0.00028767,2]
[359001323,1745615499276,-500.0,0.00028767,2]
[359001324,1745615499289,-500.0,0.00028767,2]
[359001325,1745615499299,-739.63,0.00028767,2]
[359001326,1745615499309,-1593.03,0.00028767,2]
[359001327,1745615499319,-1094.55,0.00028767,2]
[359001328,1745615499329,-500.0,0.00028767,2]
[359001329,1745615499339,-3816.96,0.00028767,2]
[359001330,1745615499349,-500.0,0.00028767,2]
[359001331,1745615499359,-670.5,0.00028767,2]
[359001332,1745615499369,-1013.01,0.00028767,2]
[359001333,1745615499379,-500.0,0.00028767,2]
[359001334,1745615499389,-500.0,0.00028767,2]
[359001335,1745615499399,-4576.01,0.00028767,2]
[359001336,1745615499410,-970.1,0.00028767,2]
[359001337,1745615499421,-500.0,0.00028767,2]
[359001338,1745615499432,-1221.39,0.00028767,2]
[359001339,1745615499444,-502.64,0.00028767,2]
[359001340,1745615499455,-500.0,0.00028767,2]
[359001341,1745615499467,-907.53,0.00028767,2]
[359001342,1745615499479,-588.79,0.00028767,2]
[359001343,1745615499490,-500.0,0.00028767,2]
[359001344,1745615499501,-627.74,0.00028767,2]
[359001345,1745615499511,-697.19,0.00028767,2]
[359001346,1745615499522,-704.54,0.00028767,2]
[359001347,1745615499532,-500.0,0.00028767,2]
[359001348,1745615499544,-855.81,0.00028767,2]
[359001349,1745615499554,-500.0,0.00028767,2]
[359001350,1745615499564,-500.0,0.00028767,2]
[359001351,1745615499573,-726.67,0.00028767,2]
[359001352,1745615499584,-500.0,0.00028767,2]
[359001353,1745615499594,-579.66,0.00028767,2]
[359001354,1745615499604,-500.0,0.00028767,2]
[359001355,1745615499614,-500.0,0.00028767,2]
[359001356,1745615499623,-500.0,0.00028767,2]
[359001357,1745615499635,-835.92,0.00028767,2]
[359001358,1745615499645,-559.40722765,0.00028767,2]
[359001359,1745615499656,-167.34271435,0.00028767,2]
[359001360,1745615499665,-500.0,0.00028767,2]
[359001361,1745615499677,-182.863717,0.00028767,7]
[359001362,1745615499687,-619.7,0.00028767,2]
[359001363,1745615499698,-963.31,0.00028767,2]
[359001364,1745615499709,-500.0,0.00028767,2]
[359001365,1745615499720,-500.0,0.00028767,2]
[359001366,1745615499730,-500.0,0.00028767,2]
[359001367,1745615499741,-182.863717,0.00028767,7]
[359001368,1745615499751,-1567.4,0.00028767,2]
[359001369,1745615499763,-500.0,0.00028767,2]
[359001370,1745615499773,-500.0,0.00028767,2]
[359001371,1745615499783,-500.0,0.00028767,2]
[359001372,1745615499795,-500.0,0.00028767,2]
[359001373,1745615499805,-575.9355115,0.00028767,2]
[359001374,1745615499815,-907.43,0.00028767,2]
[359001375,1745615499826,-5207.23,0.00028767,2]
[359001376,1745615499837,-688.53,0.00028767,2]
[359001377,1745615499847,-500.0,0.00028767,2]
[359001378,1745615499858,-500.0,0.00028767,2]
[359001379,1745615499868,-929.97,0.00028767,2]
[359001380,1745615499878,-500.0,0.00028767,2]
[359001381,1745615499887,-500.0,0.00028767,2]
[359001382,1745615499898,-500.0,0.00028767,2]
[359001383,1745615499908,-945.87,0.00028767,2]
[359001384,1745615499918,-500.0,0.00028767,2]
[359001385,1745615499929,-754.41,0.00028767,2]
[359001386,1745615499939,-500.0,0.00028767,2]
[359001387,1745615499950,-500.0,0.00028767,2]
[359001388,1745615499960,-790.79,0.00028767,2]
[359001389,1745615499970,-616.47,0.00028767,2]
[359001390,1745615499980,-500.0,0.00028767,2]
[359001391,1745615499990,-500.0,0.00028767,2]
[359001392,1745615500000,-500.0,0.00028767,2]
[359001393,1745615500010,-500.0,0.00028767,2]
[359001394,1745615500021,-500.0,0.00028767,2]
[359001395,1745615500031,-536.959828,0.00028767,7]
[359001396,1745615500044,-500.0,0.00028767,2]
[359001397,1745615500054,-592.92,0.00028767,2]
[359001398,1745615500064,-101935.21530883,0.00028767,2]
[359001399,1745615500935,-1112.4,0.00028767,2]
[359001400,1745615501689,-151.0,0.00027397,7]
[359001401,1745615501699,-500.0,0.00027397,2]
[359001402,1745615501708,-500.0,0.00027397,2]
[359001403,1745615501718,-215.039,0.00027397,2]
[359001404,1745615501727,-151.0,0.00027671,7]
[359001405,1745615501737,-151.901666,0.00027671,7]
[359001406,1745615501747,-500.0,0.00027671,2]
[359001407,1745615501759,-500.0,0.00027945,2]
[359001408,1745615501769,-21054.17469117,0.00028767,2]
[359001409,1745615501779,-602.32660368,0.00028767,2]
[359001410,1745615566822,-300.0,0.00019683,2]
[359001412,1745615577198,-31700.0,0.00019684,2]
[359001415,1745615622540,-10000.0,0.00019684,2]
[359001425,1745616090077,210.23,0.00027425,30]
[359001429,1745616410112,-200.0,0.00019647,2]
[359001430,1745616410136,-54.580576,0.0001966,2]
[359001435,1745616499168,400.54757637,0.000135,2]
[359001443,1745616540112,2021.93,0.00019186,2]
[359001465,1745616631748,-243.11719965,0.00019562,2]
[359001466,1745616631758,-200.0,0.00019611,2]
[359001467,1745616631768,-99.48709327,0.0001966,2]
[359001468,1745616631777,-190.47,0.00019661,2]
[359001469,1745616631787,-200.0,0.00019665,2]
[359001470,1745616631796,-300.0,0.00019682,2]
[359001471,1745616631806,-2448.13821507,0.00019683,2]
[359001472,1745616631817,-1556.67599551,0.00019683,2]
[359001473,1745616631827,-1200.0,0.00019683,2]
[359001474,1745616631837,-36941.27713684,0.00019684,2]
[359001475,1745616631848,-1046.79648857,0.00019684,2]
[359001476,1745616631874,-452.95011032,0.00019684,2]
[359001622,1745616637712,-1989.06656984,0.00019684,2]
[359001623,1745616637724,-870.07950427,0.00019684,2]
[359001624,1745616637771,-2103.79729016,0.00019684,2]
[359001625,1745616637780,-250.0,0.00019713,2]
[359001626,1745616637790,-12977.34635477,0.000198,2]
[359001627,1745616637800,-1219.2415,0.000198,2]
[359001628,1745616637810,-167.13771356,0.000198,2]
[359001629,1745616637819,-3721.42115056,0.00019811,2]
[359001630,1745616637831,-8074.70977859,0.00019811,2]
[359001631,1745616637843,-1181.21542553,0.00019811,2]
[359001632,1745616637853,-12977.34635468,0.00019822,2]
[359001633,1745616637862,-500.0,0.00019829,2]
[359001634,1745616637872,-34574.34454179,0.0001983,2]
[359001635,1745616637881,-434.81600609,0.0001983,2]
[359001636,1745616637891,-12977.34635468,0.00019833,2]
[359001637,1745616637901,-12977.34635468,0.00019844,2]
[359001638,1745616637910,-167.13771355,0.0001985,2]
[359001639,1745616637920,-12977.34635468,0.00019856,2]
[359001640,1745616637930,-12977.34635468,0.00019867,2]
[359001641,1745616637939,-729.82810209,0.0001987,2]
[359001642,1745616637949,-167.04036561,0.00019873,2]
[359001643,1745616637959,-12977.34635468,0.00019878,2]
[359001644,1745616637969,-3246.40167582,0.00019889,2]
[359001645,1745616637978,-12977.34635468,0.00019889,2]
[359001646,1745616637988,-694.94184815,0.000199,2]
[359001647,1745616637997,-58494.88420379,0.000199,2]
[359001649,1745616638006,-521.0225014,0.000199,2]
[359001651,1745616638015,-4744.17633973,0.000199,3]
[359001653,1745616638025,-12977.34635468,0.000199,2]
[359001655,1745616638034,-599.81520136,0.000199,2]
[359001657,1745616638044,-1672.6473933,0.000199,2]
[359001659,1745616638054,-4296.01138547,0.000199,2]
[359001661,1745616638063,-109693.88290706,0.000199,2]
[359001663,1745616638072,-189.95194323,0.000199,2]
[359001665,1745616638082,-500.0,0.00019973,2]
[359001667,1745616638091,-500.0,0.00019973,2]
[359001668,1745616638101,-348.32631817,0.00019973,2]
[359001670,1745616638110,-500.0,0.00019973,2]
[359001672,1745616638120,-300.0,0.00019999,2]
[359001674,1745616638130,-300.0,0.00019999,2]
[359001676,1745616638139,-203.09944421,0.00019999,2]
[359001678,1745616638149,-174.20997494,0.00019999,2]
[359001679,1745616638158,-500.0,0.00019999,2]
[359001680,1745616638167,-500.0,0.00019999,2]
[359001681,1745616638176,-500.0,0.00019999,2]
[359001682,1745616638185,-500.0,0.00019999,2]
[359001683,1745616638195,-500.0,0.00019999,2]
[359001684,1745616638205,-500.0,0.00019999,2]
[359001685,1745616638214,-500.0,0.00019999,2]
[359001686,1745616638223,-500.0,0.00019999,2]
[359001687,1745616638232,-500.0,0.00019999,2]
[359001688,1745616638242,-500.0,0.00019999,2]
[359001689,1745616638251,-561.50448917,0.00019999,2]
[359001690,1745616638260,-500.0,0.00019999,2]
[359001691,1745616638269,-500.0,0.00019999,2]
[359001692,1745616638278,-500.0,0.00019999,2]
[359001693,1745616638288,-500.0,0.00019999,2]
[359001694,1745616638297,-500.0,0.00019999,2]
[359001696,1745616638307,-250.0,0.00019999,2]
[359001698,1745616638316,-999148.68165199,0.0002,2]
[359001701,1745616638343,-9162.90192418,0.0002,2]
[359001727,1745616639923,-3375.65963327,0.0002,2]
[359001728,1745616639935,-307.57156581,0.0002,2]
[359001729,1745616640159,-21278.74410741,0.0002,2]
[359001730,1745616640210,-392.61197805,0.0002,2]
[359001731,1745616640267,-1372635.82273395,0.0002,2]
[359001732,1745616640377,-16042.68109724,0.0002,2]
[359001733,1745616640389,-641.01223463,0.0002,2]
[359001744,1745616643026,-167.13771355,0.000199,2]
[359001745,1745616643037,-609.90537898,0.0002,2]
[359001746,1745616643084,-510.09,0.0002,2]
[359001747,1745616643144,-1403.12488222,0.0002,2]
[359001748,1745616643157,-503.0,0.0002,2]
[359001749,1745616643168,-641.07711433,0.0002,2]
[359001750,1745616643219,-28.2867307,0.0002,2]
[359001751,1745616643257,-7189.59825592,0.0002,2]
[359001772,1745616646446,-432.800005,0.0002,2]
[359001773,1745616646470,-54676.19823912,0.0002,2]
[359001774,1745616646482,-526.284,0.0002,2]
[359001775,1745616646494,-1896.652,0.0002,2]
[359001776,1745616646510,-138998.2788844,0.0002,2]
[359001781,1745616706961,267.46055,0.00028767,42]
[359001856,1745617020039,1096.27,0.00019104,2]
[359001857,1745617022293,1973.75,0.00019104,2]
[359001858,1745617022726,250.0,0.00017,2]
[359001859,1745617023787,300.0,0.00019,2]
[359001861,1745617026160,222.88379,0.0002,23]
[359001898,1745617134393,426.51,0.0001915,2]
[359001904,1745617147304,23900.0,0.00019098,2]
[359001906,1745617150335,150.0,0.00019098,2]
[359001918,1745617177529,192.71,0.00027425,30]
[359001922,1745617188595,152.96,0.00019048,2]
[359001923,1745617190153,337.73,0.00019048,2]
[359001950,1745617256729,1997.84,0.0001713,2]
[359001966,1745617331646,222.88379,0.000248,34]
[359001967,1745617331705,222.88379,0.000298,44]
[359001968,1745617331750,222.8838,0.000273,39]
[359001974,1745617364278,1000.0,0.00019099,2]
[359001984,1745617385052,1144.84,0.00019882,5]
[359001987,1745617394003,200.0,0.00019019,2]
[359001989,1745617398325,856.98382268,0.00019232,2]
[359001999,1745617420866,1687.63,0.00018973,2]
[359002000,1745617432199,250.0,0.00018996,2]
[359002002,1745617457886,222.144534,0.00019248,2]
[359002012,1745617529427,2784.99,0.00018881,2]
[359002013,1745617565538,390.99,0.00018871,2]
[359002021,1745617636821,222.88379,0.0002095,25]
[359002022,1745617637184,222.88379,0.0002595,36]
[359002026,1745617664641,597.73,0.0001887,2]
[359002030,1745617690669,-200.0,0.00019346,2]
[359002031,1745617690693,-1712.0,0.00019394,2]
[359002036,1745617730196,11000.0,0.0001887,2]
[359002037,1745617739259,-1912.0,0.000199,3]
[359002038,1745617739429,475.51900501,0.00037808,60]
[359002047,1745617755059,300.0,0.00018869,2]
[359002048,1745617763345,200.0,0.00018869,2]
[359002059,1745617768154,-2519.358101,0.00019381,2]
[359002060,1745617768184,-285.84,0.00019394,2]
[359002061,1745617768208,-219.72932334,0.00019437,2]
[359002062,1745617768234,-200.0,0.00019537,2]
[359002063,1745617768258,-219.72932333,0.00019773,2]
[359002064,1745617768283,-1157.10779033,0.00019781,2]
[359002088,1745617791951,6099.61,0.00018881,2]
[359002090,1745617831838,-629.15700853,0.00019782,2]
[359002091,1745617831951,-738.8269785,0.00019782,2]
[359002092,1745617832064,-2007.11221684,0.00019782,2]
[359002126,1745617837857,-573.76483727,0.00019782,2]
[359002127,1745617837871,-1200.0,0.00019794,2]
[359002128,1745617837882,-300.0,0.00019794,2]
[359002129,1745617837893,-3948.86104109,0.00019795,2]
[359002130,1745617837906,-300.0,0.00019807,2]
[359002131,1745617837917,-3948.86104109,0.00019808,2]
[359002132,1745617837928,-3948.86104109,0.00019821,2]
[359002133,1745617837939,-3948.86104109,0.00019834,2]
[359002134,1745617837949,-150.0,0.00019836,2]
[359002135,1745617837960,-3948.86104109,0.00019848,2]
[359002136,1745617837971,-250.0,0.0001985,2]
[359002137,1745617837983,-25381.71729412,0.00019851,2]
[359002138,1745617837994,-12500.0,0.00019856,2]
[359002139,1745617838005,-3948.86104109,0.00019861,2]
[359002140,1745617838017,-12500.0,0.00019865,2]
[359002141,1745617838028,-833.02915138,0.00019867,2]
[359002142,1745617838040,-537.05,0.00019872,2]
[359002143,1745617838052,-423.38,0.00019872,2]
[359002144,1745617838062,-9999.99,0.00019872,2]
[359002145,1745617838072,-999.99,0.00019872,2]
[359002146,1745617838083,-2643.15,0.00019872,2]
[359002147,1745617838093,-1370.4,0.00019872,2]
[359002148,1745617838104,-388.43,0.00019872,2]
[359002149,1745617838115,-12500.0,0.00019874,2]
[359002150,1745617838125,-3948.86104109,0.00019874,2]
[359002151,1745617838135,-1782.65051705,0.00019882,2]
[359002152,1745617838171,-149.59895183,0.00019882,2]
[359002153,1745617838197,-476.43552863,0.00019882,2]
[359002154,1745617838210,-557.5,0.00019882,2]
[359002155,1745617838254,-435.68015539,0.00019882,2]
[359002156,1745617838266,-9098.1348471,0.00019882,2]
[359002157,1745617838276,-10347.46914804,0.00019882,2]
[359002158,1745617838289,-1241.60346928,0.00019882,2]
[359002159,1745617838311,-18410.91738268,0.00019882,2]
[359002160,1745617838322,-4554.32,0.00019882,2]
[359002161,1745617838332,-692.47,0.00019882,2]
[359002162,1745617838342,-1402.95,0.00019882,2]
[359002163,1745617838352,-9279.08,0.00019882,2]
[359002164,1745617838362,-9999.99,0.00019882,2]
[359002165,1745617838372,-150.99,0.00019882,2]
[359002166,1745617838382,-2822.88,0.00019882,2]
[359002167,1745617838393,-8616.84800776,0.00019882,2]
[359002168,1745617838411,-1383.14199224,0.00019882,2]
[359002169,1745617838421,-150.99,0.00019882,2]
[359002170,1745617838432,-1239.15,0.00019886,2]